fUSD/lending_fUSD_20241227
["ID","MTS","AMOUNT","RATE_DAILY","PERIOD"]
[346830210,1735312235198,-500.0,0.00010765,2]
[346830211,1735312235207,-500.0,0.00010765,2]
[346830212,1735312235217,-2009.84,0.00010765,2]
[346830213,1735312235227,-500.0,0.00010765,2]
[346830214,1735312235236,-500.0,0.00010765,2]
[346830215,1735312235246,-816.64,0.00010765,2]
[346830216,1735312235256,-500.0,0.00010765,2]
[346830217,1735312235265,-868.83,0.00010765,2]
[346830218,1735312235275,-500.0,0.00010765,2]
[346830219,1735312235284,-755.31,0.00010765,2]
[346830220,1735312235293,-500.0,0.00010765,2]
[346830221,1735312235303,-603.68,0.00010765,2]
[346830222,1735312235313,-500.0,0.00010765,2]
[346830223,1735312235323,-758.15,0.00010765,2]
[346830224,1735312235332,-500.0,0.00010765,2]
[346830225,1735312235341,-500.0,0.00010765,2]
[346830226,1735312235351,-500.0,0.00010765,2]
[346830227,1735312235360,-2921.65,0.00010765,2]
[346830228,1735312235370,-602.49,0.00010765,2]
[346830229,1735312235379,-927.0,0.00010765,2]
[346830230,1735312235389,-500.0,0.00010765,2]
[346830231,1735312235400,-500.0,0.00010765,2]
[346830232,1735312235411,-500.07,0.00010765,2]
[346830233,1735312235421,-1032.44,0.00010765,2]
[346830234,1735312235432,-2230.22,0.00010765,2]
[346830235,1735312235442,-1433.84,0.00010765,2]
[346830236,1735312235452,-500.0,0.00010765,2]
[346830237,1735312235463,-500.0,0.00010765,2]
[346830238,1735312235707,-500.0,0.00010765,2]
[346830239,1735312235716,-500.0,0.00010765,2]
[346830240,1735312235726,-603.68,0.00010765,2]
[346830241,1735312235735,-1637.25,0.00010765,2]
[346830242,1735312235745,-1140.54,0.00010765,2]
[346830243,1735312235754,-500.0,0.00010765,2]
[346830244,1735312235763,-659.72,0.00010765,2]
[346830245,1735312235774,-562.42,0.00010765,2]
[346830246,1735312235783,-1413.75,0.00010765,2]
[346830247,1735312235792,-527.32,0.00010765,2]
[346830248,1735312235802,-500.0,0.00010765,2]
[346830249,1735312235811,-317.00886902,0.00010765,2]
[346830250,1735312235821,-500.0,0.00010765,2]
[346830251,1735312235831,-505.8,0.00010765,2]
[346830252,1735312235844,-1397.52,0.00010765,2]
[346830253,1735312235854,-3384.05,0.00010765,2]
[346830254,1735312235863,-1053.48,0.00010765,2]
[346830255,1735312235872,-500.0,0.00010765,2]
[346830256,1735312235882,-1493.25,0.00010765,2]
[346830257,1735312235892,-500.0,0.00010765,2]
[346830258,1735312235901,-847.53,0.00010765,2]
[346830259,1735312235910,-500.0,0.00010765,2]
[346830260,1735312235920,-614.59,0.00010765,2]
[346830261,1735312235930,-1813.38,0.00010765,2]
[346830262,1735312235940,-916.8,0.00010765,2]
[346830263,1735312235950,-500.0,0.00010765,2]
[346830264,1735312235959,-500.0,0.00010765,2]
[346830265,1735312235969,-500.0,0.00010765,2]
[346830266,1735312235978,-500.0,0.00010765,2]
[346830267,1735312235987,-800.52,0.00010765,2]
[346830268,1735312235997,-540.46834161,0.00010765,2]
[346830269,1735312236007,-500.0,0.00010765,2]
[346830270,1735312236016,-3227.87,0.00010765,2]
[346830271,1735312236026,-500.0,0.00010765,2]
[346830272,1735312236036,-500.0,0.00010765,2]
[346830273,1735312236045,-500.0,0.00010765,2]
[346830274,1735312236055,-500.0,0.00010765,2]
[346830275,1735312236065,-500.0,0.00010765,2]
[346830276,1735312236075,-9509.08,0.00010765,2]
[346830277,1735312236085,-2016.18,0.00010765,2]
[346830278,1735312236095,-869.77,0.00010765,2]
[346830279,1735312236105,-500.0,0.00010765,2]
[346830280,1735312236115,-560.22,0.00010765,2]
[346830281,1735312236124,-500.0,0.00010765,2]
[346830282,1735312236134,-5581.71,0.00010765,2]
[346830283,1735312236144,-1712.78,0.00010765,2]
[346830284,1735312236154,-987.82,0.00010765,2]
[346830285,1735312236163,-500.0,0.00010765,2]
[346830286,1735312236173,-1665.48,0.00010765,2]
[346830287,1735312236183,-961.78,0.00010765,2]
[346830288,1735312236193,-600.9,0.00010765,2]
[346830289,1735312236202,-500.0,0.00010765,2]
[346830290,1735312236212,-1079.34,0.00010765,2]
[346830291,1735312236222,-500.0,0.00010765,2]
[346830292,1735312236232,-500.0,0.00010765,2]
[346830293,1735312236241,-500.0,0.00010765,2]
[346830294,1735312236251,-6223.09,0.00010765,2]
[346830295,1735312236260,-500.0,0.00010765,2]
[346830296,1735312236270,-1479.22,0.00010765,2]
[346830297,1735312236281,-319.14350003,0.00010765,2]
[346830298,1735312236290,-500.0,0.00010765,2]
[346830299,1735312236299,-281.69733725,0.00010765,2]
[346830300,1735312236309,-500.0,0.00010765,2]
[346830301,1735312236319,-500.0,0.00010765,2]
[346830302,1735312236328,-1687.95,0.00010765,2]
[346830303,1735312236338,-500.0,0.00010765,2]
[346830304,1735312236348,-500.0,0.00010765,2]
[346830305,1735312236357,-718.48,0.00010765,2]
[346830306,1735312236367,-2003.17,0.00010765,2]
[346830307,1735312236377,-1326.79,0.00010765,2]
[346830308,1735312236386,-4131.87,0.00010765,2]
[346830309,1735312236396,-500.0,0.00010765,2]
[346830310,1735312236405,-500.0,0.00010765,2]
[346830311,1735312236415,-500.0,0.00010765,2]
[346830312,1735312236425,-2413.95,0.00010765,2]
[346830313,1735312236434,-2204.32,0.00010765,2]
[346830314,1735312236443,-500.0,0.00010765,2]
[346830315,1735312236453,-408.46743156,0.00010765,2]
[346830316,1735312236462,-500.0,0.00010765,2]
[346830317,1735312236472,-962.7,0.00010765,2]
[346830318,1735312236482,-652.98,0.00010765,2]
[346830319,1735312236491,-500.0,0.00010765,2]
[346830320,1735312236501,-2933.28,0.00010765,2]
[346830321,1735312236511,-1445.26,0.00010765,2]
[346830322,1735312236521,-500.0,0.00010765,2]
[346830323,1735312236531,-500.0,0.00010766,2]
[346830324,1735312236540,-500.0,0.00010766,2]
[346830325,1735312236550,-833.79,0.00010766,2]
[346830326,1735312236559,-500.0,0.00010766,2]
[346830327,1735312236569,-523.07,0.00010766,2]
[346830328,1735312236578,-586.24,0.00010766,2]
[346830329,1735312236587,-500.0,0.00010766,2]
[346830330,1735312236597,-500.0,0.00010766,2]
[346830331,1735312236606,-500.0,0.00010766,2]
[346830332,1735312236616,-1038.66,0.00010766,2]
[346830333,1735312236626,-522.30053318,0.00010766,2]
[346830334,1735312236635,-1192.19,0.00010766,2]
[346830335,1735312236645,-500.0,0.00010766,2]
[346830336,1735312236655,-500.0,0.00010766,2]
[346830337,1735312236664,-500.0,0.00010766,2]
[346830338,1735312236674,-758.04,0.00010766,2]
[346830339,1735312236684,-500.0,0.00010766,2]
[346830340,1735312236694,-500.0,0.00010766,2]
[346830341,1735312236703,-500.0,0.00010766,2]
[346830342,1735312236713,-500.0,0.00010766,2]
[346830343,1735312236722,-500.0,0.00010766,2]
[346830344,1735312236732,-500.0,0.00010766,2]
[346830345,1735312236742,-1485.41,0.00010766,2]
[346830346,1735312236751,-500.0,0.00010766,2]
[346830347,1735312236761,-500.0,0.00010766,2]
[346830348,1735312236770,-500.0,0.00010766,2]
[346830349,1735312236781,-500.0,0.00010766,2]
[346830350,1735312236790,-500.0,0.00010766,2]
[346830351,1735312236799,-500.0,0.00010766,2]
[346830352,1735312236809,-500.0,0.00010766,2]
[346830353,1735312236818,-920.48,0.00010766,2]
[346830354,1735312236827,-500.0,0.00010766,2]
[346830355,1735312236841,-500.0,0.00010766,2]
[346830356,1735312236850,-500.0,0.00010766,2]
[346830357,1735312236860,-500.0,0.00010766,2]
[346830358,1735312236869,-500.0,0.00010766,2]
[346830359,1735312236879,-500.0,0.00010766,2]
[346830360,1735312236890,-500.0,0.00010766,2]
[346830361,1735312236899,-500.0,0.00010766,2]
[346830362,1735312236909,-500.0,0.00010766,2]
[346830363,1735312236918,-543.09,0.00010766,2]
[346830364,1735312236927,-800.55,0.00010766,2]
[346830365,1735312236937,-500.0,0.00010766,2]
[346830366,1735312236946,-500.0,0.00010766,2]
[346830367,1735312236955,-500.0,0.00010766,2]
[346830368,1735312236964,-1024.67,0.00010766,2]
[346830369,1735312236974,-1225.7,0.00010766,2]
[346830370,1735312236983,-500.0,0.00010766,2]
[346830371,1735312236992,-500.0,0.00010766,2]
[346830372,1735312237002,-500.0,0.00010766,2]
[346830373,1735312237011,-419.14152146,0.00010766,2]
[346830374,1735312237021,-587.76,0.00010766,2]
[346830375,1735312237031,-813.56,0.00010766,2]
[346830376,1735312237040,-500.0,0.00010766,2]
[346830377,1735312237050,-155.94732915,0.00010766,2]
[346830378,1735312237059,-500.0,0.00010766,2]
[346830379,1735312237068,-500.0,0.00010766,2]
[346830380,1735312237077,-510.11,0.00010766,2]
[346830381,1735312237087,-916.27,0.00010766,2]
[346830382,1735312237097,-500.0,0.00010766,2]
[346830383,1735312237106,-1185.95,0.00010766,2]
[346830384,1735312237116,-636.31,0.00010766,2]
[346830385,1735312237125,-527.47,0.00010766,2]
[346830386,1735312237135,-500.0,0.00010766,2]
[346830387,1735312237144,-500.0,0.00010766,2]
[346830388,1735312237154,-500.0,0.00010766,2]
[346830389,1735312237164,-500.0,0.00010766,2]
[346830390,1735312237173,-500.0,0.00010766,2]
[346830391,1735312237183,-500.0,0.00010766,2]
[346830392,1735312237191,-500.0,0.00010766,2]
[346830393,1735312237202,-379.64590924,0.00010766,2]
[346830394,1735312237212,-500.0,0.00010766,2]
[346830395,1735312237222,-500.0,0.00010766,2]
[346830396,1735312237232,-500.0,0.00010766,2]
[346830397,1735312237241,-500.0,0.00010766,2]
[346830398,1735312237252,-500.0,0.00010766,2]
[346830399,1735312237262,-1994.67,0.00010766,2]
[346830400,1735312237271,-500.0,0.00010766,2]
[346830401,1735312237281,-355.01812532,0.00010766,2]
[346830402,1735312237290,-946.46,0.00010766,2]
[346830403,1735312237299,-500.0,0.00010766,2]
[346830404,1735312237309,-500.0,0.00010766,2]
[346830405,1735312237318,-1757.32,0.00010766,2]
[346830406,1735312237327,-1292.26,0.00010766,2]
[346830407,1735312237336,-500.0,0.00010766,2]
[346830408,1735312237345,-1313.17,0.00010766,2]
[346830409,1735312237355,-500.0,0.00010766,2]
[346830410,1735312237364,-500.0,0.00010766,2]
[346830411,1735312237373,-500.0,0.00010766,2]
[346830412,1735312237383,-500.0,0.00010766,2]
[346830413,1735312237393,-500.0,0.00010766,2]
[346830414,1735312237402,-1174.87,0.00010766,2]
[346830415,1735312237412,-932.19,0.00010766,2]
[346830416,1735312237422,-500.0,0.00010766,2]
[346830417,1735312237432,-1438.71,0.00010766,2]
[346830418,1735312237443,-636.88,0.00010766,2]
[346830419,1735312237455,-500.0,0.00010766,2]
[346830420,1735312237466,-500.0,0.00010766,2]
[346830421,1735312237475,-500.0,0.00010766,2]
[346830422,1735312237485,-500.0,0.00010766,2]
[346830423,1735312237495,-1042.04,0.00010766,2]
[346830424,1735312237504,-500.0,0.00010766,2]
[346830425,1735312237514,-500.0,0.00010766,2]
[346830426,1735312237524,-726.02,0.00010766,2]
[346830427,1735312237534,-500.0,0.00010766,2]
[346830428,1735312237544,-500.0,0.00010766,2]
[346830429,1735312237553,-500.0,0.00010766,2]
[346830430,1735312237563,-2054.17,0.00010766,2]
[346830431,1735312237573,-500.0,0.00010766,2]
[346830432,1735312237583,-505.93691129,0.00010766,2]
[346830433,1735312237594,-498.43623597,0.00010766,2]
[346830434,1735312237603,-500.0,0.00010766,2]
[346830435,1735312237613,-917.25,0.00010766,2]
[346830436,1735312237622,-500.0,0.00010766,2]
[346830437,1735312237632,-581.47,0.00010766,2]
[346830438,1735312237641,-1364.9,0.00010766,2]
[346830439,1735312237651,-614.37,0.00010766,2]
[346830440,1735312237660,-1726.87,0.00010766,2]
[346830441,1735312237670,-500.0,0.00010766,2]
[346830442,1735312237679,-1627.56,0.00010766,2]
[346830443,1735312237689,-500.0,0.00010766,2]
[346830444,1735312237698,-500.0,0.00010766,2]
[346830445,1735312237708,-700.67,0.00010766,2]
[346830446,1735312237717,-500.0,0.00010766,2]
[346830447,1735312237727,-2285.16,0.00010766,2]
[346830448,1735312237736,-351.02872488,0.00010766,2]
[346830449,1735312237746,-806.51,0.00010766,2]
[346830450,1735312237756,-500.0,0.00010766,2]
[346830451,1735312237765,-675.36,0.00010766,2]
[346830452,1735312237776,-500.0,0.00010766,2]
[346830453,1735312237786,-500.0,0.00010766,2]
[346830455,1735312237796,-500.0,0.00010766,2]
[346830456,1735312237805,-1144.26,0.00010766,2]
[346830457,1735312237815,-993.63,0.00010766,2]
[346830458,1735312237825,-500.0,0.00010766,2]
[346830459,1735312237837,-521.81,0.00010766,2]
[346830460,1735312237846,-1046.55,0.00010766,2]
[346830461,1735312237855,-500.0,0.00010766,2]
[346830462,1735312237865,-517.76819876,0.00010766,2]
[346830464,1735312237875,-500.0,0.00010766,2]
[346830465,1735312237884,-500.0,0.00010766,2]
[346830466,1735312237894,-500.0,0.00010766,2]
[346830467,1735312237904,-1296.37,0.00010766,2]
[346830468,1735312237914,-753.56,0.00010766,2]
[346830469,1735312237925,-1985.68,0.00010766,2]
[346830470,1735312237935,-1451.04,0.00010766,2]
[346830471,1735312237944,-500.0,0.00010766,2]
[346830472,1735312237953,-500.0,0.00010766,2]
[346830473,1735312237963,-1024.09,0.00010766,2]
[346830474,1735312237972,-360.54336935,0.00010766,2]
[346830475,1735312237982,-500.0,0.00010766,2]
[346830476,1735312237991,-926.89,0.00010766,2]
[346830477,1735312238002,-500.0,0.00010766,2]
[346830478,1735312238011,-500.0,0.00010766,2]
[346830479,1735312238021,-500.0,0.00010766,2]
[346830480,1735312238031,-1009.95,0.00010766,2]
[346830481,1735312238040,-1733.52,0.00010766,2]
[346830482,1735312238050,-500.0,0.00010766,2]
[346830483,1735312238060,-524.47,0.00010766,2]
[346830484,1735312238070,-500.0,0.00010766,2]
[346830485,1735312238079,-1293.8,0.00010766,2]
[346830486,1735312238089,-500.0,0.00010766,2]
[346830487,1735312238098,-500.0,0.00010766,2]
[346830488,1735312238108,-606.75,0.00010766,2]
[346830489,1735312238117,-529.29347617,0.00010766,2]
[346830490,1735312238127,-516.74613081,0.00010766,2]
[346830491,1735312238136,-1283.37,0.00010766,2]
[346830492,1735312238146,-1602.33,0.00010766,2]
[346830493,1735312238155,-500.0,0.00010766,2]
[346830494,1735312238164,-500.0,0.00010766,2]
[346830495,1735312238174,-855.0,0.00010766,2]
[346830496,1735312238184,-500.0,0.00010766,2]
[346830497,1735312238193,-935.88,0.00010766,2]
[346830499,1735312238202,-500.0,0.00010766,2]
[346830501,1735312238212,-500.0,0.00010766,2]
[346830502,1735312238221,-500.0,0.00010766,2]
[346830503,1735312238231,-1381.97,0.00010766,2]
[346830504,1735312238241,-500.0,0.00010766,2]
[346830505,1735312238251,-1611.39,0.00010766,2]
[346830506,1735312238260,-500.0,0.00010766,2]
[346830507,1735312238270,-2689.39,0.00010766,2]
[346830508,1735312238280,-500.0,0.00010766,2]
[346830509,1735312238290,-500.0,0.00010766,2]
[346830510,1735312238301,-573.74,0.00010766,2]
[346830511,1735312238311,-1045.78,0.00010766,2]
[346830512,1735312238320,-500.0,0.00010766,2]
[346830513,1735312238330,-500.0,0.00010766,2]
[346830514,1735312238340,-682.35,0.00010766,2]
[346830515,1735312238349,-500.0,0.00010766,2]
[346830516,1735312238359,-500.0,0.00010766,2]
[346830518,1735312238369,-1243.64,0.00010766,2]
[346830520,1735312238378,-500.0,0.00010766,2]
[346830522,1735312238388,-1173.76,0.00010766,2]
[346830524,1735312238398,-500.0,0.00010766,2]
[346830526,1735312238407,-500.0,0.00010766,2]
[346830528,1735312238416,-500.0,0.00010766,2]
[346830530,1735312238426,-1530.57,0.00010766,2]
[346830532,1735312238435,-500.0,0.00010766,2]
[346830534,1735312238444,-500.0,0.00010766,2]
[346830536,1735312238454,-1562.77,0.00010766,2]
[346830538,1735312238464,-500.0,0.00010766,2]
[346830540,1735312238473,-925.02,0.00010766,2]
[346830542,1735312238484,-1872.47,0.00010766,2]
[346830544,1735312238493,-500.0,0.00010766,2]
[346830546,1735312238502,-500.0,0.00010766,2]
[346830548,1735312238511,-500.0,0.00010766,2]
[346830550,1735312238520,-1621.33,0.00010766,2]
[346830552,1735312238533,-500.0,0.00010766,2]
[346830554,1735312238546,-556.1,0.00010766,2]
[346830556,1735312238556,-500.0,0.00010766,2]
[346830558,1735312238565,-639.78,0.00010766,2]
[346830560,1735312238575,-1503.91,0.00010766,2]
[346830562,1735312238585,-500.0,0.00010766,2]
[346830564,1735312238594,-1063.33,0.00010766,2]
[346830566,1735312238603,-1423.2,0.00010766,2]
[346830568,1735312238614,-500.0,0.00010766,2]
[346830570,1735312238623,-1085.91,0.00010766,2]
[346830572,1735312238632,-2285.34,0.00010766,2]
[346830574,1735312238641,-1018.9,0.00010766,2]
[346830576,1735312238651,-1249.98,0.00010766,2]
[346830578,1735312238660,-500.0,0.00010766,2]
[346830580,1735312238670,-854.58,0.00010766,2]
[346830582,1735312238680,-1188.21,0.00010766,2]
[346830584,1735312238689,-1181.91,0.00010766,2]
[346830586,1735312238699,-500.0,0.00010766,2]
[346830588,1735312238709,-629.8,0.00010766,2]
[346830590,1735312238718,-500.0,0.00010766,2]
[346830592,1735312238728,-1507.45,0.00010766,2]
[346830594,1735312238737,-1055.05,0.00010766,2]
[346830596,1735312238746,-500.0,0.00010766,2]
[346830598,1735312238756,-500.0,0.00010766,2]
[346830600,1735312238766,-500.0,0.00010766,2]
[346830602,1735312238777,-650.69,0.00010766,2]
[346830604,1735312238787,-1455.1,0.00010766,2]
[346830606,1735312238797,-500.0,0.00010766,2]
[346830608,1735312238806,-500.0,0.00010766,2]
[346830610,1735312238816,-500.0,0.00010766,2]
[346830612,1735312238826,-500.0,0.00010766,2]
[346830614,1735312238839,-970.82,0.00010766,2]
[346830616,1735312238849,-1142.46,0.00010766,2]
[346830618,1735312238859,-500.0,0.00010766,2]
[346830620,1735312238868,-1692.48,0.00010766,2]
[346830621,1735312238879,-17023.26,0.00010766,2]
[346830623,1735312238889,-639.91,0.00010766,2]
[346830625,1735312238899,-500.0,0.00010766,2]
[346830627,1735312238908,-500.0,0.00010766,2]
[346830629,1735312238919,-500.0,0.00010766,2]
[346830631,1735312238928,-588.4,0.00010766,2]
[346830633,1735312238938,-1522.63,0.00010766,2]
[346830635,1735312238947,-500.0,0.00010766,2]
[346830637,1735312238957,-571.15,0.00010766,2]
[346830639,1735312238966,-1205.78,0.00010766,2]
[346830641,1735312238975,-500.0,0.00010766,2]
[346830643,1735312238985,-1915.12,0.00010766,2]
[346830645,1735312238994,-10478.42,0.00010766,2]
[346830647,1735312239003,-1138.95,0.00010766,2]
[346830649,1735312239014,-1691.03,0.00010766,2]
[346830651,1735312239027,-3510.01,0.00010766,2]
[346830653,1735312239039,-500.0,0.00010766,2]
[346830655,1735312239050,-500.0,0.00010766,2]
[346830656,1735312239060,-500.0,0.00010766,2]
[346830658,1735312239070,-500.0,0.00010766,2]
[346830660,1735312239080,-500.0,0.00010766,2]
[346830662,1735312239089,-2423.31,0.00010766,2]
[346830664,1735312239099,-500.0,0.00010766,2]
[346830666,1735312239111,-1341.18,0.00010766,2]
[346830668,1735312239121,-500.0,0.00010766,2]
[346830670,1735312239132,-500.0,0.00010766,2]
[346830672,1735312239142,-500.0,0.00010766,2]
[346830674,1735312239152,-654.02,0.00010766,2]
[346830676,1735312239162,-500.0,0.00010766,2]
[346830678,1735312239172,-500.0,0.00010766,2]
[346830680,1735312239182,-2564.99,0.00010766,2]
[346830682,1735312239191,-1137.28,0.00010766,2]
[346830684,1735312239201,-500.0,0.00010766,2]
[346830686,1735312239211,-2477.27,0.00010766,2]
[346830688,1735312239222,-500.0,0.00010766,2]
[346830690,1735312239232,-1089.22,0.00010766,2]
[346830692,1735312239243,-1151.38,0.00010766,2]
[346830694,1735312239253,-570.28,0.00010766,2]
[346830696,1735312239264,-676.29,0.00010766,2]
[346830698,1735312239279,-846.42,0.00010766,2]
[346830700,1735312239290,-500.0,0.00010766,2]
[346830702,1735312239300,-500.0,0.00010766,2]
[346830704,1735312239311,-500.0,0.00010766,2]
[346830706,1735312239322,-500.0,0.00010766,2]
[346830708,1735312239332,-500.0,0.00010766,2]
[346830710,1735312239342,-500.0,0.00010766,2]
[346830712,1735312239352,-5009.91,0.00010766,2]
[346830714,1735312239362,-1157.9,0.00010766,2]
[346830716,1735312239373,-500.0,0.00010766,2]
[346830718,1735312239383,-500.0,0.00010766,2]
[346830720,1735312239393,-500.0,0.00010766,2]
[346830722,1735312239403,-500.0,0.00010766,2]
[346830724,1735312239413,-500.0,0.00010766,2]
[346830726,1735312239423,-604.95,0.00010766,2]
[346830728,1735312239433,-1013.96,0.00010766,2]
[346830730,1735312239443,-500.0,0.00010766,2]
[346830732,1735312239454,-531.53,0.00010766,2]
[346830734,1735312239464,-674.09,0.00010766,2]
[346830736,1735312239475,-1066.62,0.00010766,2]
[346830738,1735312239485,-983.41,0.00010766,2]
[346830740,1735312239495,-863.98,0.00010766,2]
[346830742,1735312239505,-500.0,0.00010766,2]
[346830744,1735312239515,-1395.32,0.00010766,2]
[346830746,1735312239529,-500.0,0.00010766,2]
[346830748,1735312239540,-500.0,0.00010766,2]
[346830750,1735312239550,-29507.83,0.00010766,2]
[346830752,1735312239561,-500.0,0.00010766,2]
[346830754,1735312239572,-500.0,0.00010766,2]
[346830756,1735312239584,-500.0,0.00010766,2]
[346830758,1735312239594,-500.0,0.00010766,2]
[346830760,1735312239605,-770.59,0.00010766,2]
[346830762,1735312239615,-500.0,0.00010766,2]
[346830765,1735312239626,-2354.56,0.00010766,2]
[346830767,1735312239636,-500.0,0.00010766,2]
[346830768,1735312239646,-500.0,0.00010766,2]
[346830771,1735312239657,-674.62,0.00010766,2]
[346830773,1735312239668,-627.55,0.00010766,2]
[346830775,1735312239678,-2041.79,0.00010766,2]
[346830777,1735312239689,-2434.05,0.00010766,2]
[346830779,1735312239698,-741.47,0.00010766,2]
[346830781,1735312239710,-500.0,0.00010766,2]
[346830783,1735312239720,-500.0,0.00010766,2]
[346830785,1735312239731,-500.0,0.00010766,2]
[346830787,1735312239741,-2754.4,0.00010766,2]
[346830789,1735312239751,-500.0,0.00010766,2]
[346830816,1735312239959,-500.0,0.00010766,2]
[346830819,1735312240001,-500.0,0.00010766,2]
[346830821,1735312240011,-6184.6,0.00010766,2]
[346830823,1735312240022,-2503.7,0.00010766,2]
[346830825,1735312240034,-3693.61,0.00010766,2]
[346830827,1735312240044,-500.0,0.00010766,2]
[346830829,1735312240054,-500.0,0.00010766,2]
[346830831,1735312240065,-500.0,0.00010766,2]
[346830833,1735312240076,-443.13009904,0.00010767,2]
[346830835,1735312240085,-500.0,0.00010767,2]
[346830837,1735312240095,-500.0,0.00010767,2]
[346830839,1735312240104,-500.0,0.00010767,2]
[346830841,1735312240114,-500.0,0.00010767,2]
[346830843,1735312240124,-500.0,0.00010767,2]
[346830845,1735312240133,-500.0,0.00010767,2]
[346830847,1735312240143,-154.80747412,0.00010767,2]
[346830849,1735312240153,-500.0,0.00010767,2]
[346830851,1735312240162,-546.71404462,0.00010767,2]
[346830853,1735312240173,-500.0,0.00010767,2]
[346830855,1735312240183,-500.0,0.00010767,2]
[346830857,1735312240192,-500.0,0.00010767,2]
[346830859,1735312240202,-341.07027275,0.00010767,2]
[346830861,1735312240212,-500.0,0.00010767,2]
[346830863,1735312240222,-172.33150113,0.00010767,2]
[346830865,1735312240232,-1962.27,0.00010767,2]
[346830867,1735312240242,-2201.95,0.00010767,2]
[346830869,1735312240252,-3650.95,0.00010767,2]
[346830871,1735312240261,-13523.19,0.00010767,2]
[346830873,1735312240270,-3387.37,0.00010767,2]
[346830875,1735312240281,-629.62,0.00010767,2]
[346830877,1735312240290,-1881.42,0.00010767,2]
[346830879,1735312240301,-1086.96,0.00010767,2]
[346830881,1735312240310,-500.0,0.00010767,2]
[346830883,1735312240320,-500.0,0.00010767,2]
[346830885,1735312240330,-500.0,0.00010767,2]
[346830887,1735312240340,-1625.71,0.00010767,2]
[346830889,1735312240349,-500.0,0.00010767,2]
[346830891,1735312240359,-3561.34,0.00010767,2]
[346830893,1735312240368,-1195.31,0.00010767,2]
[346830895,1735312240378,-1297.57,0.00010767,2]
[346830897,1735312240388,-2036.8,0.00010767,2]
[346830899,1735312240398,-1473.53,0.00010767,2]
[346830901,1735312240407,-13301.9,0.00010767,2]
[346830903,1735312240418,-1208.45,0.00010767,2]
[346830905,1735312240428,-1258.03,0.00010767,2]
[346830907,1735312240437,-500.0,0.00010767,2]
[346830909,1735312240447,-500.0,0.00010767,2]
[346830911,1735312240457,-1929.0,0.00010767,2]
[346830913,1735312240467,-3542.81,0.00010767,2]
[346830915,1735312240477,-1652.17,0.00010767,2]
[346830917,1735312240488,-7524.0,0.00010767,2]
[346830919,1735312240498,-1455.0,0.00010767,2]
[346830921,1735312240508,-500.0,0.00010767,2]
[346830923,1735312240518,-2018.54,0.00010767,2]
[346830925,1735312240530,-919.62,0.00010767,2]
[346830928,1735312240540,-3628.55,0.00010767,2]
[346830929,1735312240550,-2177.98,0.00010767,2]
[346830931,1735312240560,-666.09,0.00010767,2]
[346830934,1735312240570,-3521.93,0.00010767,2]
[346830936,1735312240580,-500.0,0.00010767,2]